fUSD/lending_fUSD_20260129
["ID","MTS","AMOUNT","RATE_DAILY","PERIOD"]
[403910455,1769664632316,-218.52836553,0.00016502,2]
[403910456,1769664632326,-281.35441059,0.00016627,2]
[403910458,1769664632335,-1000.0,0.00016658,2]
[403910460,1769664632344,-1000.0,0.00016709,2]
[403910461,1769664632353,-392.75117701,0.00016765,2]
[403910463,1769664632362,-225.27,0.00016797,2]
[403910465,1769664632372,-954.0,0.00016801,2]
[403910467,1769664632381,-871.27,0.00016812,2]
[403910469,1769664632390,-1558.0,0.00016834,2]
[403910471,1769664632399,-1194.0,0.00016868,2]
[403910473,1769664632408,-1376.0,0.00016901,2]
[403910475,1769664632418,-503.48631946,0.00016902,2]
[403910478,1769664632427,-1000.0,0.00016921,2]
[403910481,1769664632436,-1000.0,0.00016921,2]
[403910484,1769664632445,-1000.0,0.00016921,2]
[403910487,1769664632454,-281.35441059,0.00016999,2]
[403910489,1769664632463,-221.89,0.00017028,2]
[403910491,1769664632472,-500.0,0.00017039,2]
[403910493,1769664632482,-322.6107,0.00017099,2]
[403910495,1769664632491,-500.0,0.00017099,2]
[403910497,1769664632500,-500.0,0.00017099,2]
[403910499,1769664632510,-174.61919141,0.00017099,2]
[403910502,1769664632519,-500.0,0.00017099,2]
[403910503,1769664632529,-151.4588309,0.00017099,2]
[403910505,1769664632538,-500.0,0.00017099,2]
[403910507,1769664632548,-500.0,0.00017099,2]
[403910509,1769664632558,-500.0,0.00017099,2]
[403910511,1769664632567,-500.0,0.00017099,2]
[403910513,1769664632576,-500.0,0.00017099,2]
[403910515,1769664632586,-209.40437684,0.00017099,2]
[403910517,1769664632595,-854.2589148,0.00017099,2]
[403910519,1769664632605,-500.0,0.00017099,2]
[403910521,1769664632614,-500.0,0.00017099,2]
[403910523,1769664632624,-500.0,0.00017099,2]
[403910525,1769664632633,-250.0,0.00017099,2]
[403910527,1769664632642,-250.0,0.00017099,2]
[403910529,1769664632651,-250.0,0.00017099,2]
[403910531,1769664632660,-250.0,0.00017099,2]
[403910534,1769664632669,-250.0,0.00017099,2]
[403910535,1769664632678,-250.0,0.00017099,2]
[403910537,1769664632687,-250.0,0.00017099,2]
[403910539,1769664632696,-250.0,0.00017099,2]
[403910541,1769664632705,-250.0,0.00017099,2]
[403910543,1769664632714,-250.0,0.00017099,2]
[403910546,1769664632725,-250.0,0.00017099,2]
[403910548,1769664632735,-250.0,0.00017099,2]
[403910549,1769664632747,-250.0,0.00017099,2]
[403910551,1769664632756,-250.0,0.00017099,2]
[403910553,1769664632765,-578.20924308,0.00017099,2]
[403910555,1769664632775,-250.0,0.00017099,2]
[403910557,1769664632785,-250.0,0.00017099,2]
[403910559,1769664632795,-250.0,0.00017099,2]
[403910561,1769664632804,-250.0,0.00017099,2]
[403910563,1769664632813,-250.0,0.00017099,2]
[403910565,1769664632823,-250.0,0.00017099,2]
[403910567,1769664632832,-250.0,0.00017099,2]
[403910569,1769664632841,-250.0,0.00017099,2]
[403910571,1769664632850,-250.0,0.00017099,2]
[403910573,1769664632859,-250.0,0.00017099,2]
[403910575,1769664632868,-250.0,0.00017099,2]
[403910577,1769664632877,-250.0,0.00017099,2]
[403910579,1769664632886,-209.40437684,0.00017099,2]
[403910581,1769664632895,-500.0,0.00017099,2]
[403910583,1769664632904,-250.0,0.00017099,2]
[403910585,1769664632913,-500.0,0.00017099,2]
[403910587,1769664632923,-250.0,0.00017099,2]
[403910589,1769664632931,-500.0,0.00017099,2]
[403910591,1769664632940,-250.0,0.00017099,2]
[403910593,1769664632949,-500.0,0.00017099,2]
[403910594,1769664632958,-250.0,0.00017099,2]
[403910595,1769664632967,-250.0,0.00017099,2]
[403910596,1769664632976,-500.0,0.00017099,2]
[403910597,1769664632985,-250.0,0.00017099,2]
[403910598,1769664632994,-500.0,0.00017099,2]
[403910599,1769664633003,-250.0,0.00017099,2]
[403910600,1769664633013,-500.0,0.00017099,2]
[403910601,1769664633022,-1000.0,0.00017099,2]
[403910602,1769664633031,-500.0,0.00017099,2]
[403910603,1769664633041,-1000.0,0.00017099,2]
[403910604,1769664633050,-500.0,0.00017099,2]
[403910605,1769664633059,-1000.0,0.00017099,2]
[403910606,1769664633068,-500.0,0.00017099,2]
[403910607,1769664633078,-1000.0,0.00017099,2]
[403910608,1769664633087,-500.0,0.00017099,2]
[403910609,1769664633095,-1000.0,0.00017099,2]
[403910611,1769664633104,-1000.0,0.00017099,2]
[403910613,1769664633114,-1000.0,0.00017099,2]
[403910614,1769664633123,-1000.0,0.00017099,2]
[403910617,1769664633133,-1107.82499032,0.00017099,2]
[403910619,1769664633141,-500.0,0.00017099,2]
[403910621,1769664633151,-500.0,0.00017099,2]
[403910623,1769664633161,-500.0,0.00017099,2]
[403910625,1769664633170,-500.0,0.00017099,2]
[403910627,1769664633180,-500.0,0.00017099,2]
[403910629,1769664633189,-500.0,0.00017099,2]
[403910630,1769664633198,-500.0,0.00017099,2]
[403910632,1769664633207,-500.0,0.00017099,2]
[403910634,1769664633216,-500.0,0.00017099,2]
[403910637,1769664633225,-500.0,0.00017099,2]
[403910639,1769664633234,-500.0,0.00017099,2]
[403910641,1769664633244,-500.0,0.00017099,2]
[403910643,1769664633252,-500.0,0.00017099,2]
[403910645,1769664633261,-584.31746283,0.00017099,2]
[403910646,1769664633271,-500.0,0.00017099,2]
[403910649,1769664633280,-500.0,0.00017099,2]
[403910651,1769664633289,-500.0,0.00017099,2]
[403910653,1769664633299,-250.0,0.00017099,2]
[403910655,1769664633308,-250.0,0.00017099,2]
[403910657,1769664633316,-250.0,0.00017099,2]
[403910659,1769664633325,-250.0,0.00017099,2]
[403910661,1769664633335,-250.0,0.00017099,2]
[403910662,1769664633343,-250.0,0.00017099,2]
[403910664,1769664633352,-250.0,0.00017099,2]
[403910666,1769664633361,-250.0,0.00017099,2]
[403910669,1769664633370,-250.0,0.00017099,2]
[403910671,1769664633379,-250.0,0.00017099,2]
[403910672,1769664633388,-250.0,0.00017099,2]
[403910675,1769664633397,-500.0,0.00017099,2]
[403910677,1769664633406,-158.09194497,0.00017146,2]
[403910678,1769664633415,-217.15233878,0.00017154,2]
[403910680,1769664633424,-225.18697532,0.00017209,2]
[403910682,1769664633433,-250.0,0.00017251,2]
[403910684,1769664633442,-233.51889341,0.00017264,2]
[403910685,1769664633451,-200.0,0.00017274,2]
[403910686,1769664633460,-200.0,0.00017274,2]
[403910687,1769664633469,-200.0,0.00017274,2]
[403910688,1769664633478,-200.0,0.00017274,2]
[403910689,1769664633488,-209.21500565,0.00017274,2]
[403910690,1769664633497,-300.0,0.00017274,2]
[403910691,1769664633506,-2500.0,0.00017274,2]
[403910692,1769664633517,-201.27942425,0.00017274,2]
[403910693,1769664633527,-600.0,0.00017318,2]
[403910694,1769664633536,-502.27711246,0.00017318,2]
[403910695,1769664633545,-250.0,0.00017318,2]
[403910696,1769664633554,-195.0,0.00017318,2]
[403910697,1769664633564,-242.15909246,0.00017319,2]
[403910698,1769664633574,-166.66,0.00017324,2]
[403910699,1769664633583,-1000.0,0.00017336,2]
[403910700,1769664633593,-500.0,0.00017373,2]
[403910701,1769664633603,-251.11897888,0.00017374,2]
[403910702,1769664633613,-260.4103811,0.00017429,2]
[403910703,1769664633624,-1500.0,0.00017468,2]
[403910704,1769664633633,-1500.0,0.00017468,2]
[403910705,1769664633642,-270.0455652,0.00017484,2]
[403910706,1769664633652,-935.0,0.00017485,2]
[403910707,1769664633661,-280.03725112,0.00017539,2]
[403910708,1769664633670,-290.39862941,0.00017594,2]
[403910709,1769664633679,-1848.6490804,0.0001764,2]
[403910710,1769664633689,-181.08010149,0.00017647,2]
[403910711,1769664633700,-224.29691198,0.00017647,2]
[403910712,1769664633710,-885.86649465,0.00017647,2]
[403910713,1769664633721,-500.0,0.00017647,2]
[403910714,1769664633730,-301.1433787,0.00017649,2]
[403910715,1769664633743,-337.0,0.00017685,2]
[403910716,1769664633755,-166.66,0.00017689,2]
[403910717,1769664633765,-215.80123735,0.00017698,2]
[403910718,1769664633775,-150.0,0.00017698,2]
[403910719,1769664633786,-150.0,0.00017698,2]
[403910720,1769664633795,-500.0,0.00017698,2]
[403910721,1769664633805,-152.171088,0.00017698,2]
[403910722,1769664633815,-153.23607155,0.00017698,2]
[403910723,1769664633824,-500.0,0.00017753,2]
[403910724,1769664633834,-175.0,0.00017766,2]
[403910725,1769664633843,-4258.2658561,0.00017799,2]
[403910726,1769664633853,-869.29579289,0.000178,2]
[403910727,1769664633862,-500.0,0.00017808,2]
[403910728,1769664633872,-500.0,0.00017808,2]
[403910729,1769664633882,-4258.26585609,0.0001781,2]
[403910730,1769664633891,-869.29579289,0.00017814,2]
[403910731,1769664633904,-666.66667,0.0001782,2]
[403910732,1769664633914,-666.66666,0.0001782,2]
[403910733,1769664633923,-4258.26585609,0.00017821,2]
[403910734,1769664633932,-4258.26585609,0.00017833,2]
[403910735,1769664633942,-4258.26585609,0.00017844,2]
[403910736,1769664633951,-200.0,0.00017855,2]
[403910737,1769664633960,-4258.26585609,0.00017855,2]
[403910738,1769664633970,-153.32539,0.00017856,2]
[403910739,1769664633979,-200.0,0.00017856,2]
[403910740,1769664633988,-500.0,0.00017862,2]
[403910741,1769664633997,-500.0,0.00017863,2]
[403910742,1769664634006,-4258.26585609,0.00017866,2]
[403910743,1769664634406,-300.0,0.00017873,2]
[403910744,1769664634420,-175.0,0.00017876,2]
[403910745,1769664634430,-4258.26585609,0.00017878,2]
[403910746,1769664634439,-250.0,0.00017879,2]
[403910747,1769664634448,-4258.26585609,0.00017889,2]
[403910748,1769664634457,-165.38,0.0001789,2]
[403910749,1769664634466,-2060.837,0.00017896,2]
[403910750,1769664634476,-3958.3225,0.00017896,2]
[403910751,1769664634485,-151.0,0.00017897,2]
[403910752,1769664634495,-500.0,0.00017898,2]
[403910753,1769664634504,-500.0,0.00017898,2]
[403910754,1769664634513,-380.63415321,0.00017898,2]
[403910755,1769664634524,-500.0,0.00017898,2]
[403910756,1769664634534,-500.0,0.00017898,2]
[403910757,1769664634544,-500.0,0.00017898,2]
[403910758,1769664634553,-500.0,0.00017898,2]
[403910759,1769664634566,-647.72880195,0.00017898,2]
[403910760,1769664634576,-500.0,0.00017898,2]
[403910761,1769664634585,-500.0,0.00017898,2]
[403910762,1769664634594,-500.0,0.00017898,2]
[403910763,1769664634604,-500.0,0.00017898,2]
[403910764,1769664634613,-500.0,0.00017898,2]
[403910765,1769664634622,-500.0,0.00017898,2]
[403910766,1769664634631,-500.0,0.00017898,2]
[403910767,1769664634641,-570.00544856,0.00017898,2]
[403910768,1769664634650,-500.0,0.00017898,2]
[403910769,1769664634659,-500.0,0.00017898,2]
[403910770,1769664634668,-500.0,0.00017898,2]
[403910771,1769664634677,-500.0,0.00017898,2]
[403910772,1769664634686,-500.0,0.00017898,2]
[403910773,1769664634695,-500.0,0.00017898,2]
[403910774,1769664634704,-500.0,0.00017898,2]
[403910775,1769664634713,-500.0,0.00017898,2]
[403910776,1769664634722,-500.0,0.00017898,2]
[403910777,1769664634731,-500.0,0.00017898,2]
[403910778,1769664634742,-500.0,0.00017898,2]
[403910779,1769664634751,-500.0,0.00017898,2]
[403910780,1769664634759,-500.0,0.00017898,2]
[403910781,1769664634771,-500.0,0.00017898,2]
[403910782,1769664634783,-500.0,0.00017898,2]
[403910783,1769664634793,-500.0,0.00017898,2]
[403910784,1769664634802,-500.0,0.00017898,2]
[403910785,1769664634814,-500.0,0.00017898,2]
[403910786,1769664634823,-500.0,0.00017898,2]
[403910787,1769664634832,-500.0,0.00017898,2]
[403910788,1769664634842,-567.66813768,0.00017898,2]
[403910789,1769664634851,-500.0,0.00017898,2]
[403910790,1769664634860,-500.0,0.00017898,2]
[403910791,1769664634871,-500.0,0.00017898,2]
[403910792,1769664634880,-500.0,0.00017898,2]
[403910793,1769664634889,-500.0,0.00017898,2]
[403910794,1769664634900,-500.0,0.00017898,2]
[403910795,1769664634909,-500.0,0.00017898,2]
[403910796,1769664634918,-500.0,0.00017898,2]
[403910797,1769664634927,-500.0,0.00017898,2]
[403910798,1769664634936,-500.0,0.00017898,2]
[403910799,1769664634945,-500.0,0.00017898,2]
[403910800,1769664634954,-500.0,0.00017898,2]
[403910801,1769664634964,-500.0,0.00017898,2]
[403910802,1769664634974,-500.0,0.00017898,2]
[403910803,1769664634983,-500.0,0.00017898,2]
[403910804,1769664634992,-500.0,0.00017898,2]
[403910805,1769664635001,-500.0,0.00017898,2]
[403910806,1769664635010,-500.0,0.00017898,2]
[403910807,1769664635019,-500.0,0.00017898,2]
[403910808,1769664635028,-500.0,0.00017898,2]
[403910809,1769664635037,-500.0,0.00017898,2]
[403910810,1769664635047,-180.60652142,0.00017898,2]
[403910811,1769664635056,-500.0,0.00017898,2]
[403910812,1769664635066,-500.0,0.00017898,2]
[403910813,1769664635075,-13381.26459826,0.00017898,2]
[403910814,1769664635085,-13381.26459822,0.00017898,2]
[403910815,1769664635094,-13381.26459822,0.00017898,2]
[403910816,1769664635103,-13381.26459822,0.00017899,2]
[403910817,1769664635114,-13381.26459822,0.00017899,2]
[403910818,1769664635123,-13381.26459822,0.00017899,2]
[403910819,1769664635132,-13381.26459822,0.00017899,2]
[403910820,1769664635152,-13381.26459822,0.000179,2]
[403910821,1769664635164,-13381.26459822,0.000179,2]
[403910822,1769664635174,-1000.0,0.000179,2]
[403910823,1769664635183,-346.704705,0.000179,2]
[403910824,1769664635193,-416.35950648,0.000179,2]
[403910825,1769664635204,-180.17786517,0.000179,3]
[403910826,1769664635214,-13381.26459822,0.000179,2]
[403910827,1769664635224,-4258.26585609,0.000179,2]
[403910828,1769664635234,-343.17499868,0.000179,2]
[403910829,1769664635243,-649.50276679,0.000179,2]
[403910830,1769664635253,-4192.07878504,0.000179,2]
[403910831,1769664635262,-11062.96223888,0.000179,2]
[403910832,1769664635272,-19516.37672419,0.000179,2]
[403910833,1769664635283,-29195.33238156,0.000179,2]
[403910834,1769664635293,-39502.3167,0.000179,2]
[403910835,1769664635315,-923.22863654,0.000179,2]
[403910836,1769664635328,-1715.30888326,0.000179,2]
[403910837,1769664635338,-3505.69934984,0.000179,2]
[403910838,1769664635349,-500.0,0.00017917,2]
[403910839,1769664635359,-500.0,0.00017918,2]
[403910840,1769664635368,-550.57346639,0.00017921,2]
[403910841,1769664635377,-175.0,0.00017929,2]
[403910842,1769664635387,-1680.0,0.00017962,2]
[403910843,1769664635396,-1000.0,0.00017963,2]
[403910844,1769664635406,-500.0,0.00017972,2]
[403910845,1769664635416,-500.0,0.00017972,2]
[403910846,1769664635425,-221.89,0.00017974,2]
[403910847,1769664635435,-168.0,0.00017977,2]
[403910848,1769664635445,-500.0,0.00017982,2]
[403910849,1769664635454,-6964.5577968,0.00017986,2]
[403910850,1769664635463,-1155.03,0.00017989,2]
[403910851,1769664635473,-30576.50700356,0.0001799,3]
[403910852,1769664635482,-914.03591362,0.0001799,2]
[403910853,1769664635491,-914.03591362,0.0001799,2]
[403910854,1769664635501,-914.03591362,0.0001799,2]
[403910855,1769664635511,-500.0,0.00017995,2]
[403910856,1769664635520,-500.0,0.00017995,2]
[403910857,1769664635529,-237.25702033,0.00017995,2]
[403910858,1769664635539,-500.0,0.00017995,2]
[403910859,1769664635548,-500.0,0.00017995,2]
[403910860,1769664635557,-500.0,0.00017995,2]
[403910861,1769664635567,-151.0,0.00017996,2]
[403910862,1769664635576,-149597.9045682,0.00017996,2]
[403910863,1769664635585,-12582.8421861,0.00017996,2]
[403910864,1769664635595,-48035.01593,0.00017996,2]
[403910865,1769664635605,-196.72051846,0.00017997,2]
[403910866,1769664635615,-500.0,0.00017999,2]
[403910867,1769664635625,-500.0,0.00017999,2]
[403910868,1769664635634,-500.0,0.00017999,2]
[403910869,1769664635643,-500.0,0.00017999,2]
[403910870,1769664635653,-260.59013303,0.00017999,2]
[403910871,1769664635662,-500.0,0.00017999,2]
[403910872,1769664635672,-500.0,0.00017999,2]
[403910873,1769664635681,-500.0,0.00017999,2]
[403910874,1769664635690,-500.0,0.00017999,2]
[403910875,1769664635704,-500.0,0.00017999,2]
[403910876,1769664635713,-500.0,0.00017999,2]
[403910877,1769664635726,-500.0,0.00017999,2]
[403910878,1769664635738,-236.16272431,0.00017999,2]
[403910879,1769664635750,-500.0,0.00017999,2]
[403910880,1769664635760,-500.0,0.00017999,2]
[403910881,1769664635770,-500.0,0.00017999,2]
[403910882,1769664635779,-500.0,0.00017999,2]
[403910883,1769664635790,-500.0,0.00017999,2]
[403910884,1769664635800,-500.0,0.00017999,2]
[403910885,1769664635811,-500.0,0.00017999,2]
[403910886,1769664635821,-500.0,0.00017999,2]
[403910887,1769664635833,-500.0,0.00017999,2]
[403910888,1769664635844,-500.0,0.00017999,2]
[403910889,1769664635854,-500.0,0.00017999,2]
[403910890,1769664635863,-500.0,0.00017999,3]
[403910891,1769664635874,-500.0,0.00017999,2]
[403910892,1769664635884,-502.01597814,0.00017999,2]
[403910893,1769664635893,-500.0,0.00017999,2]
[403910894,1769664635903,-500.0,0.00017999,2]
[403910895,1769664635912,-500.0,0.00017999,2]
[403910896,1769664635922,-500.0,0.00017999,2]
[403910897,1769664635931,-500.0,0.00017999,2]
[403910898,1769664635940,-572.92100435,0.00017999,2]
[403910899,1769664635949,-506.33966749,0.00017999,2]
[403910900,1769664635958,-500.0,0.00017999,2]
[403910901,1769664635967,-500.0,0.00017999,2]
[403910902,1769664635976,-500.0,0.00017999,2]
[403910903,1769664635986,-500.0,0.00017999,2]
[403910904,1769664635995,-500.0,0.00017999,2]
[403910905,1769664636004,-500.0,0.00017999,2]
[403910906,1769664636014,-500.0,0.00017999,2]
[403910907,1769664636024,-500.0,0.00017999,2]
[403910908,1769664636035,-500.0,0.00017999,2]
[403910909,1769664636044,-618.26420438,0.00017999,2]
[403910910,1769664636054,-500.0,0.00017999,2]
[403910911,1769664636067,-500.0,0.00017999,2]
[403910912,1769664636078,-500.0,0.00017999,2]
[403910913,1769664636089,-620.13152006,0.00017999,2]
[403910914,1769664636100,-562.54,0.00017999,2]
[403910915,1769664636111,-562.54,0.00017999,2]
[403910916,1769664636121,-562.54,0.00017999,2]
[403910917,1769664636133,-562.54,0.00017999,2]
[403910918,1769664636143,-562.54,0.00017999,2]
[403910919,1769664636153,-562.54,0.00017999,2]
[403910920,1769664636162,-562.54,0.00017999,2]
[403910921,1769664636172,-562.54,0.00017999,2]
[403910922,1769664636182,-562.54,0.00017999,2]
[403910923,1769664636191,-562.54,0.00017999,2]
[403910924,1769664636201,-562.54,0.00017999,2]
[403910925,1769664636211,-562.54,0.00017999,2]
[403910926,1769664636222,-525.01451157,0.00017999,2]
[403910927,1769664636231,-500.0,0.00017999,2]
[403910928,1769664636241,-500.0,0.00017999,2]
[403910929,1769664636252,-504.69000412,0.00017999,2]
[403910930,1769664636262,-500.0,0.00017999,2]
[403910931,1769664636277,-500.0,0.00017999,2]
[403910932,1769664636287,-500.0,0.00017999,2]
[403910933,1769664636298,-500.0,0.00017999,2]
[403910934,1769664636308,-500.0,0.00017999,2]
[403910935,1769664636319,-500.0,0.00017999,2]
[403910936,1769664636331,-500.0,0.00017999,2]
[403910937,1769664636341,-500.0,0.00017999,2]
[403910938,1769664636352,-500.0,0.00017999,2]
[403910939,1769664636362,-500.0,0.00017999,2]
[403910940,1769664636372,-500.0,0.00017999,2]
[403910941,1769664636381,-500.0,0.00017999,2]
[403910942,1769664636391,-500.0,0.00017999,2]
[403910943,1769664636401,-500.0,0.00017999,2]
[403910944,1769664636413,-500.0,0.00017999,2]
[403910945,1769664636423,-500.0,0.00017999,2]
[403910946,1769664636433,-500.0,0.00017999,2]
[403910947,1769664636443,-500.0,0.00017999,2]
[403910948,1769664636452,-500.0,0.00017999,2]
[403910949,1769664636466,-500.0,0.00017999,2]
[403910950,1769664636475,-500.0,0.00017999,2]
[403910951,1769664636486,-500.0,0.00017999,2]
[403910952,1769664636496,-500.0,0.00017999,2]
[403910953,1769664636506,-500.0,0.00017999,2]
[403910954,1769664636516,-500.0,0.00017999,2]
[403910955,1769664636526,-500.0,0.00017999,2]
[403910956,1769664636536,-500.0,0.00017999,2]
[403910957,1769664636547,-500.0,0.00017999,2]
[403910958,1769664636556,-284.23649948,0.00017999,2]
[403910959,1769664636566,-500.0,0.00017999,2]
[403910960,1769664636576,-500.0,0.00017999,2]
[403910961,1769664636586,-500.0,0.00017999,2]
[403910962,1769664636596,-500.0,0.00017999,2]
[403910963,1769664636606,-500.0,0.00017999,2]
[403910964,1769664636618,-500.0,0.00017999,2]
[403910965,1769664636628,-500.0,0.00017999,2]
[403910966,1769664636638,-500.0,0.00017999,2]
[403910967,1769664636647,-500.0,0.00017999,2]
[403910968,1769664636660,-500.0,0.00017999,2]
[403910969,1769664636670,-308.31742635,0.00017999,2]
[403910970,1769664636680,-515.36950556,0.00017999,2]
[403910971,1769664636690,-514.16801706,0.00017999,2]
[403910972,1769664636700,-500.0,0.00017999,2]
[403910973,1769664636710,-500.0,0.00017999,2]
[403910974,1769664636720,-600.43584466,0.00017999,2]
[403910975,1769664636729,-500.0,0.00017999,2]
[403910976,1769664636742,-500.0,0.00017999,2]
[403910977,1769664636752,-500.0,0.00017999,2]
[403910978,1769664636762,-500.0,0.00017999,2]
[403910979,1769664636772,-500.0,0.00017999,2]
[403910980,1769664636783,-500.0,0.00017999,2]
[403910981,1769664636792,-500.0,0.00017999,2]
[403910982,1769664636803,-500.0,0.00017999,2]
[403910983,1769664636813,-500.0,0.00017999,2]
[403910984,1769664636823,-500.0,0.00017999,2]
[403910985,1769664636832,-500.0,0.00017999,2]
[403910986,1769664636842,-500.0,0.00017999,2]
[403910987,1769664636853,-501.96475106,0.00017999,2]
[403910988,1769664636863,-500.0,0.00017999,2]
[403910989,1769664636873,-500.0,0.00017999,2]
[403910990,1769664636883,-500.0,0.00017999,2]
[403910991,1769664636892,-500.0,0.00017999,2]
[403910992,1769664636902,-500.0,0.00017999,2]
[403910993,1769664636911,-500.0,0.00017999,2]
[403910994,1769664636920,-500.0,0.00017999,2]
[403910995,1769664636930,-500.0,0.00017999,2]
[403910996,1769664636940,-500.0,0.00017999,2]
[403910997,1769664636951,-500.0,0.00017999,2]
[403910998,1769664636961,-500.0,0.00017999,2]
[403910999,1769664636972,-500.0,0.00017999,2]
[403911000,1769664636981,-500.0,0.00017999,2]
[403911001,1769664636990,-500.0,0.00017999,2]
[403911002,1769664636999,-500.0,0.00017999,2]
[403911003,1769664637010,-500.0,0.00017999,2]
[403911004,1769664637021,-500.0,0.00017999,2]
[403911005,1769664637031,-500.0,0.00017999,2]
[403911006,1769664637040,-517.08238259,0.00017999,2]
[403911007,1769664637051,-500.0,0.00017999,2]
[403911008,1769664637062,-500.0,0.00017999,2]
[403911009,1769664637072,-500.0,0.00017999,2]
[403911010,1769664637081,-500.0,0.00017999,2]
[403911011,1769664637091,-500.0,0.00017999,2]
[403911012,1769664637101,-500.0,0.00017999,2]
[403911013,1769664637110,-500.0,0.00017999,2]
[403911014,1769664637119,-500.0,0.00017999,2]
[403911015,1769664637129,-507.35345227,0.00017999,2]
[403911016,1769664637138,-500.0,0.00017999,2]
[403911017,1769664637147,-500.0,0.00017999,2]
[403911018,1769664637157,-580.66574664,0.00017999,2]
[403911019,1769664637166,-500.0,0.00017999,2]
[403911020,1769664637175,-500.0,0.00017999,2]
[403911021,1769664637185,-206.05029368,0.00017999,2]
[403911022,1769664637195,-500.0,0.00017999,2]
[403911023,1769664637204,-500.0,0.00017999,2]
[403911024,1769664637215,-500.0,0.00017999,2]
[403911025,1769664637225,-500.0,0.00017999,2]
[403911026,1769664637236,-386.73049415,0.00017999,2]
[403911027,1769664637255,-192.28479642,0.00017999,2]
[403911028,1769664637267,-401.97748155,0.00017999,2]
[403911029,1769664637277,-5142.0,0.00018,2]
[403911030,1769664637287,-150.0,0.00018,2]
[403911031,1769664637297,-2189292.30577287,0.00018,2]
[403911032,1769664637307,-151.61356357,0.00018,2]
[403911033,1769664637316,-1000.0,0.00018,2]
[403911034,1769664637326,-169.38649963,0.00018,2]
[403911035,1769664637335,-1836.149,0.00018,2]
[403911036,1769664637345,-8918817.84631814,0.00018,2]
[403911038,1769664638367,-516.36883909,0.00018,2]
[403911039,1769664638389,-7888.68474107,0.00018,2]
[403911040,1769664638400,-8984.47098694,0.00018,2]
[403911042,1769664638441,-1465.67217035,0.00018,2]
[403911043,1769664638452,-574.9815518,0.00018,2]
[403911335,1769664641250,-151.0,0.00016408,2]
[403911337,1769664641260,-151.0,0.00016408,2]
[403911339,1769664641269,-869.29579289,0.00017829,2]
[403911341,1769664641279,-869.29579289,0.00017843,2]
[403911343,1769664641288,-3006.25316812,0.00018,2]
[403911345,1769664641299,-1554.53461667,0.00018,2]
[403911348,1769664641318,-17786.5642017,0.00018,2]
[403911350,1769664641332,-6424.85942953,0.00018,2]
[403911353,1769664641342,-451.15504761,0.00018,2]
[403911355,1769664641353,-4227141.04789449,0.00018,2]
[403911357,1769664641362,-1212458.78469399,0.00018,2]
[403911359,1769664641373,-268.66432624,0.00018,2]
[403911361,1769664641384,-1064.40417485,0.00018,2]
[403911363,1769664641395,-2234.0433528,0.00018,2]
[403911373,1769664641468,-3847.83174617,0.00018,2]
[403911474,1769664642415,-797.43544263,0.000179,2]
[403911477,1769664642426,-26449.12648251,0.000179,2]
[403911485,1769664642492,-10977.9429633,0.000179,2]
[403911487,1769664642504,-611.22442461,0.000179,2]
[403911495,1769664642567,-3089.6,0.000179,2]